bitfinex/quotes_ETHUSD_20251116
["timestamp","ask_amount","ask_price","bid_price","bid_amount"]
[1763288368633,8.43110144,3238.8,3238.7,0.002]
[1763288368852,8.83660544,3238.8,3238.7,0.002]
[1763288369164,9.31940544,3238.8,3238.7,0.002]
[1763288369361,0.2886313,3238.8,3238.7,0.0671]
[1763288369537,3.37619459,3238.8,3238.7,0.0671]
[1763288369738,4.99573539,3238.8,3238.7,0.002]
[1763288370341,5.02571138,3238.8,3238.7,0.002]
[1763288370548,6.11089595,3238.8,3238.7,0.002]
[1763288371731,6.48642396,3238.8,3238.7,0.002]
[1763288372336,4.50993539,3238.8,3238.7,0.0671]
[1763288374864,4.53991138,3238.8,3238.7,0.002]
[1763288375068,4.99021138,3238.8,3238.7,0.002]
[1763288375769,4.50993539,3238.8,3238.7,0.0671]
[1763288375966,1.4223721,3238.8,3238.7,0.0671]
[1763288376269,4.50993539,3238.8,3238.7,0.0671]
[1763288378168,4.50993539,3238.8,3238.7,0.002]
[1763288378573,4.50993539,3238.8,3238.7,0.0671]
[1763288378870,4.50993539,3238.8,3238.7,0.002]
[1763288379064,7.59749868,3238.8,3238.5,0.0009]
[1763288379284,0.855804,3238.6,3238.5,0.0009]
[1763288379489,2.2781761,3238.6,3238.5,0.0009]
[1763288379635,2.7306761,3238.6,3238.5,0.0009]
[1763288381161,5.81843006,3238.6,3238.5,0.0009]
[1763288381368,7.03304417,3238.6,3238.5,0.0009]
[1763288382557,6.58054417,3238.6,3238.5,0.0009]
[1763288382754,4.51012606,3238.6,3238.5,0.0009]
[1763288382967,5.41292606,3238.6,3238.5,0.0009]
[1763288385699,5.41360097,3238.6,3238.5,0.0009]
[1763288385989,1.42304701,3238.6,3238.5,0.066]
[1763288386176,3.37706017,3238.6,3238.5,0.1311]
[1763288386493,0.28930621,3238.6,3238.5,0.1311]
[1763288387955,3.37706017,3238.6,3238.5,0.0009]
[1763288388153,3.37706017,3238.6,3238.5,0.066]
[1763288390070,3.37706017,3238.6,3238.5,0.0099]
[1763288390878,3.37706017,3238.6,3238.3,0.002]
[1763288391058,3.08775396,3238.6,3238.5,0.0099]
[1763288391263,3.37704701,3238.6,3238.5,0.0099]
[1763288391589,3.37704701,3238.6,3238.3,0.002]
[1763288391590,6.91510097,3238.6,3238.3,0.002]
[1763288391790,0.02997599,3238.5,3238.3,0.002]
[1763288391967,0.28929546,3238.4,3238.3,0.002]
[1763288392171,3.37724012,3238.4,3238.3,0.002]
[1763288392366,3.37724012,3238.4,3238.3,0.0119]
[1763288393267,0.28929546,3238.4,3238.3,0.0119]
[1763288393897,3.37724012,3238.4,3238.3,0.0119]
[1763288394775,0.28929546,3238.4,3238.3,0.0119]
[1763288394971,0.28929546,3238.4,3238.3,0.0218]
[1763288395464,0.28929546,3238.4,3238.3,0.0119]
[1763288395660,0.28929546,3238.4,3238.3,0.0218]
[1763288396089,0.28929546,3238.4,3238.3,0.0119]
[1763288399210,0.28929546,3238.4,3238.3,0.0218]
[1763288399597,0.28929546,3238.4,3238.3,0.0119]
[1763288400182,0.28929546,3238.4,3238.3,0.0218]
[1763288400675,0.28929546,3238.4,3238.3,0.0119]
[1763288401480,0.28929546,3238.4,3238.3,0.0218]
[1763288402808,0.28929546,3238.4,3238.3,0.002]
[1763288403110,0.001,3239.0,3238.3,5.12183354]
[1763288403413,0.001,3239.0,3238.3,8.19997356]
[1763288403414,0.28923182,3238.9,3238.3,8.19997356]
[1763288403583,0.001,3239.0,3238.9,0.0099]
[1763288403778,0.29022807,3239.0,3238.9,0.0099]
[1763288403980,0.29022807,3239.0,3238.3,0.0119]
[1763288404183,0.28922807,3238.9,3238.3,0.002]
[1763288404395,0.28922807,3238.8,3238.3,0.002]
[1763288404591,3.08784931,3238.5,3238.3,0.002]
[1763288404804,0.77892807,3238.4,3238.3,0.002]
[1763288405301,0.28922807,3238.4,3238.3,0.002]
[1763288405706,0.28922807,3238.4,3238.3,0.0119]
[1763288405909,0.28922807,3238.4,3238.3,0.0218]
[1763288406093,0.28922807,3238.8,3238.3,0.0218]
[1763288406293,0.28922807,3238.7,3238.4,0.0099]
[1763288406493,0.28922807,3238.6,3238.4,0.0099]
[1763288406811,0.28922807,3238.9,3238.4,6.18578932]
[1763288407018,0.28922807,3238.9,3238.5,0.0099]
[1763288407194,0.28922807,3238.9,3238.8,0.0099]
[1763288407389,0.001,3239.0,3238.8,0.0099]
[1763288407595,0.29022807,3239.0,3238.9,0.0099]
[1763288407806,0.001,3239.0,3238.9,0.0099]
[1763288407996,0.29022807,3239.0,3238.9,0.0099]
[1763288408317,0.001,3239.0,3238.9,0.0099]
[1763288408520,0.29022807,3239.0,3238.9,0.0099]
[1763288408684,0.001,3239.0,3238.9,0.0099]
[1763288408885,0.29022807,3239.0,3238.9,0.0099]
[1763288409102,0.001,3239.0,3238.9,0.0099]
[1763288411624,0.001,3239.0,3238.9,3.10726796]
[1763288411830,0.001,3239.0,3238.9,0.0198]
[1763288412613,0.001,3239.0,3238.9,3.10726796]
[1763288413136,0.001,3239.0,3238.3,0.002]
[1763288413137,0.4907,3239.0,3238.3,0.002]
[1763288413434,0.02997599,3238.9,3238.3,0.002]
[1763288413733,0.28922807,3238.9,3238.3,0.0119]
[1763288414722,0.28922807,3238.9,3238.8,0.0099]
[1763288414977,0.001,3239.0,3238.8,0.0099]
[1763288415142,0.29022807,3239.0,3238.8,0.0099]
[1763288415312,0.001,3239.0,3238.8,0.0099]
[1763288415512,0.29022807,3239.0,3238.8,0.0099]
[1763288415718,0.001,3239.0,3238.8,0.0099]
[1763288415917,0.001,3239.0,3238.3,3.09992421]
[1763288415918,0.29022807,3239.0,3238.4,3.08794466]
[1763288416104,0.28922807,3238.9,3238.4,3.09784466]
[1763288416648,0.28922807,3238.9,3238.8,0.0099]
[1763288421648,0.001,3239.0,3238.8,0.0099]
[1763288421812,0.29022807,3239.0,3238.8,0.0099]
[1763288422011,0.001,3239.0,3238.8,0.0099]
[1763288422226,0.28922807,3238.9,3238.8,0.0099]
[1763288422955,0.76502807,3238.9,3238.5,0.002]
[1763288423111,0.4758,3238.9,3238.5,0.002]
[1763288423641,1.71929766,3238.8,3238.5,0.002]
[1763288423842,0.28904874,3238.7,3238.5,0.002]
[1763288424214,0.28904874,3238.8,3238.6,0.0099]
[1763288424414,0.28904874,3238.7,3238.6,0.0099]
[1763288424638,0.28904874,3238.8,3238.6,0.0099]
[1763288425238,0.28904874,3238.7,3238.6,0.0099]
[1763288425557,3.37652563,3238.9,3238.6,0.0099]
[1763288425724,0.28904874,3238.8,3238.6,0.0099]
[1763288425923,0.28904874,3238.7,3238.6,0.0099]
[1763288426127,0.28904874,3238.8,3238.6,0.0099]
[1763288426336,0.28904874,3238.7,3238.6,0.0099]
[1763288426523,0.28904874,3238.8,3238.6,0.0099]
[1763288426725,0.28904874,3238.7,3238.6,0.0099]
[1763288427045,3.85262144,3238.9,3238.5,0.002]
[1763288427245,0.28904874,3238.8,3238.5,0.002]
[1763288427451,3.5635727,3238.9,3238.5,0.002]
[1763288427452,0.28904874,3238.7,3238.5,0.002]
[1763288427640,3.5635727,3238.9,3238.5,0.002]
[1763288427858,0.28923753,3238.8,3238.5,0.002]
[1763288428059,0.28923753,3238.7,3238.5,0.002]
[1763288428262,3.5635727,3238.9,3238.5,0.002]
[1763288428466,0.28929774,3238.8,3238.5,0.002]
[1763288428628,0.28929774,3238.7,3238.5,0.002]
[1763288428825,0.28929774,3238.6,3238.5,0.002]
[1763288430348,0.28929774,3238.6,3238.5,0.0119]
[1763288432327,6.04824936,3238.6,3238.5,0.002]
[1763288432574,7.1337679,3238.6,3238.5,0.002]
[1763288437336,8.85306556,3238.6,3238.5,0.002]
[1763288437672,9.98680636,3238.6,3238.5,0.002]
[1763288441659,10.39231036,3238.6,3238.5,0.002]
[1763288447610,10.51602661,3238.6,3238.5,0.002]
[1763288455566,10.51702661,3238.6,3238.5,0.002]
[1763288458902,8.69141179,3238.6,3238.5,0.002]
[1763288465326,11.94541179,3238.6,3238.5,0.002]
[1763288465520,8.69141179,3238.6,3238.5,0.002]
[1763288466588,8.69141179,3238.6,3238.0,0.002]
[1763288466589,0.4672,3238.2,3238.0,0.002]
[1763288466793,3.6194253,3238.0,3235.6,1.6129805]
[1763288467012,1.6129805,3236.9,3236.5,0.0099]
[1763288467216,0.28929774,3236.8,3236.5,0.0099]
[1763288467395,0.28929774,3236.7,3236.5,0.0099]
[1763288467590,0.28929774,3236.6,3236.5,0.0099]
[1763288467988,0.28929774,3236.6,3236.5,0.0198]
[1763288468211,0.405504,3236.5,3234.4,0.0099]
[1763288468532,0.405504,3236.5,3234.8,0.16140182]
[1763288468533,1.6129805,3235.1,3234.8,0.16140182]
[1763288468688,0.4672,3236.1,3234.8,0.16140182]
[1763288468689,1.90227824,3235.0,3234.8,0.16140182]
[1763288468885,1.90227824,3235.0,3233.2,0.0099]
[1763288468886,0.75649774,3234.9,3233.2,0.0099]
[1763288469090,0.75649774,3234.9,3233.3,0.0099]
[1763288469091,1.6129805,3234.1,3233.3,0.0099]
[1763288469286,1.6129805,3233.7,3233.3,0.0099]
[1763288469525,0.4672,3234.7,3233.3,0.0099]
[1763288469526,1.6129805,3233.6,3233.3,0.0099]
[1763288469823,4.70541331,3233.7,3233.6,0.0099]
[1763288470199,4.70541331,3233.7,3232.5,3.09357072]
[1763288470200,0.405504,3233.6,3232.5,0.0099]
[1763288470528,2.06293467,3233.7,3233.5,0.0099]
[1763288470734,0.28778948,3233.6,3233.5,0.0099]
[1763288471226,3.19145492,3233.7,3232.1,1.1337408]
[1763288471447,1.92008629,3233.6,3232.6,0.0099]
[1763288471819,3.09262409,3233.5,3232.6,0.0099]
[1763288472254,1.1337408,3233.4,3232.3,0.0099]
[1763288472563,6.18524818,3233.5,3233.4,0.0099]
[1763288472564,1.1337408,3233.5,3233.4,0.0099]
[1763288472714,1.1337408,3233.5,3232.6,2.26226105]
[1763288473326,1.1337408,3233.5,3231.7,0.43644746]
[1763288473327,1.1337408,3233.5,3232.1,2.26226105]
[1763288473547,3.39600185,3233.5,3232.5,0.002]
[1763288473752,1.1337408,3233.5,3232.5,0.002]
[1763288473953,6.18543946,3233.4,3232.5,0.002]
[1763288474648,3.09271973,3233.4,3232.5,0.002]
[1763288474858,1.1337408,3233.5,3232.6,2.26226105]
[1763288475558,0.92913344,3233.9,3232.9,2.26226105]
[1763288475763,3.09203305,3234.2,3233.0,0.03093102]
[1763288475929,4.22580319,3234.1,3233.1,3.09300671]
[1763288476132,1.5982408,3234.3,3233.1,3.09300671]
[1763288476348,0.58238191,3234.2,3233.1,3.09300671]
[1763288476537,1.1337408,3234.1,3232.7,1.1337408]
[1763288476877,1.1337408,3234.2,3232.7,1.1337408]
[1763288477941,4.22577701,3234.2,3232.8,6.18658746]
[1763288478335,1.1337408,3234.2,3232.8,9.27988119]
[1763288478534,0.73174998,3234.1,3232.8,6.18658746]
[1763288478864,0.73174998,3234.1,3232.8,9.27988119]
[1763288479658,0.73174998,3234.1,3232.8,6.18658746]
[1763288479851,1.1337408,3234.2,3232.8,6.18658746]
[1763288479852,1.1337408,3234.2,3233.0,2.26226105]
[1763288480156,1.1337408,3234.2,3233.1,6.18601342]
[1763288480352,3.09196925,3234.2,3233.1,6.18601342]
[1763288481450,1.1337408,3234.1,3233.1,3.09300671]
[1763288482339,3.09206388,3234.1,3232.8,6.59209146]
[1763288482551,1.1337408,3234.1,3232.8,9.68538519]
[1763288482767,3.09197418,3234.2,3232.9,2.26226105]
[1763288484285,1.1337408,3234.2,3233.0,6.18620476]
[1763288484467,0.9289378,3234.6,3233.5,2.26226105]
[1763288484643,1.1337408,3234.6,3233.2,2.26226105]
[1763288485195,6.64740706,3234.8,3233.3,0.405504]
[1763288485484,6.18290706,3234.8,3233.3,0.405504]
[1763288485667,6.64740706,3234.8,3233.3,0.405504]
[1763288486377,6.64740706,3234.8,3233.5,1.1337408]
[1763288486550,7.55809387,3234.8,3233.5,1.1337408]
[1763288486877,7.55809387,3234.8,3233.5,3.39600185]
[1763288487073,4.46664034,3234.8,3233.5,3.39600185]
[1763288487272,6.64740706,3234.8,3233.5,3.39600185]
[1763288487682,6.18290706,3234.8,3233.5,3.39600185]
[1763288488757,6.18257132,3234.9,3233.6,6.1850569]
[1763288488957,6.64707132,3234.9,3233.6,6.1850569]
[1763288489152,3.55578566,3234.9,3233.6,6.1850569]
[1763288489353,1.8181596,3234.9,3233.8,2.26226105]
[1763288489679,1.1337408,3235.2,3234.1,2.26226105]
[1763288490192,3.09081713,3235.4,3234.4,2.26226105]
[1763288490400,6.64613426,3235.4,3234.1,2.26226105]
[1763288490573,0.4645,3235.3,3234.1,2.26226105]
[1763288491081,3.09092165,3235.3,3234.2,6.18390946]
[1763288491487,6.6463433,3235.3,3234.2,3.09195473]
[1763288491668,3.09092165,3235.3,3234.2,6.18390946]
[1763288491859,0.001,3235.4,3234.2,9.27586419]
[1763288492061,0.001,3235.4,3234.6,2.26226105]
[1763288492986,0.001,3235.4,3234.7,6.18295358]
[1763288493184,0.001,3235.4,3234.7,3.09147679]
[1763288493512,0.001,3235.4,3233.8,4.42634553]
[1763288493513,0.001,3235.4,3234.3,3.09181515]
[1763288493658,0.001,3235.4,3234.3,8.44593533]
[1763288494005,0.001,3235.4,3234.0,3.39600185]
[1763288494006,0.02997599,3235.3,3234.0,3.39600185]
[1763288494163,0.4645,3235.2,3234.0,3.39600185]
[1763288494362,0.02997599,3235.1,3234.0,3.39600185]
[1763288494683,0.4645,3235.2,3234.0,2.26226105]
[1763288495198,3.0911901,3235.0,3234.1,3.09205033]
[1763288495561,0.02997599,3235.0,3234.1,3.09205033]
[1763288496310,0.31729461,3235.0,3234.0,5.35439402]
[1763288496476,0.28731862,3235.1,3234.0,8.44653996]
[1763288496667,1.42105942,3235.3,3234.5,2.26226105]
[1763288496861,0.28731862,3235.2,3234.5,2.26226105]
[1763288497062,0.28731862,3235.1,3234.5,2.26226105]
[1763288497313,0.474,3234.6,3233.6,2.26226105]
[1763288497613,0.28819256,3234.5,3233.6,2.26226105]
[1763288498162,0.28819256,3234.4,3233.6,2.26226105]
[1763288498376,0.28819256,3234.3,3233.9,2.26226105]
[1763288498581,0.28819256,3234.2,3233.9,2.26226105]
[1763288498781,0.1917,3234.8,3233.9,2.26226105]
[1763288498984,0.31865219,3234.7,3233.6,2.26226105]
[1763288499313,0.2886762,3234.6,3233.7,6.18486562]
[1763288499493,0.02997599,3234.7,3233.7,6.18486562]
[1763288499494,0.2886762,3234.5,3233.7,6.18486562]
[1763288499813,0.2886762,3234.4,3233.8,2.26226105]
[1763288499989,0.02997599,3234.7,3233.8,2.26226105]
[1763288499990,0.2886762,3234.3,3233.8,2.26226105]
[1763288500188,0.2886762,3234.2,3233.8,2.26226105]
[1763288500395,3.38023923,3234.7,3233.8,2.26226105]
[1763288500693,1.00117174,3234.6,3233.8,2.26226105]
[1763288500890,0.28866807,3234.5,3233.8,2.26226105]
[1763288501077,0.28866807,3234.4,3233.8,2.26226105]
[1763288501282,0.28866807,3234.3,3233.8,5.35455099]
[1763288501482,0.28866807,3234.2,3233.8,5.35455099]
[1763288501703,3.09168157,3234.5,3233.8,5.35455099]
[1763288501887,0.28872644,3234.4,3233.8,5.35455099]
[1763288502202,0.28872644,3234.3,3233.8,8.44688817]
[1763288502370,0.28872644,3234.2,3233.8,8.44688817]
[1763288502570,3.09158191,3234.6,3233.8,8.44688817]
[1763288502801,0.28879957,3234.5,3233.8,8.44688817]
[1763288503108,3.09158191,3234.6,3233.8,8.44688817]
[1763288503109,0.28879957,3234.4,3233.8,5.35455099]
[1763288503272,0.28879957,3234.3,3233.8,5.35455099]
[1763288503601,0.28879957,3234.2,3233.8,5.35455099]
[1763288503770,0.28879957,3234.1,3233.8,5.35455099]
[1763288503969,3.09149396,3234.7,3233.8,8.44688817]
[1763288504169,0.28888532,3234.6,3233.8,8.44688817]
[1763288504417,0.28888532,3234.5,3233.8,8.44688817]
[1763288504574,3.77511235,3234.7,3233.8,8.44688817]
[1763288504575,0.28888532,3234.4,3233.8,5.35455099]
[1763288504773,0.28888532,3234.3,3233.8,5.35455099]
[1763288504984,0.28888532,3234.2,3233.8,5.35455099]
[1763288505206,0.28888532,3234.1,3233.8,5.35455099]
[1763288505410,0.33782264,3235.1,3233.9,0.03092241]
[1763288505591,0.28910295,3235.0,3234.1,2.26226105]
[1763288505795,4.68653535,3235.1,3234.1,2.26226105]
[1763288505796,0.28910295,3234.9,3234.1,2.26226105]
[1763288506016,0.28910295,3234.8,3234.1,2.26226105]
[1763288506208,0.28910295,3234.7,3234.1,2.26226105]
[1763288506415,0.28910295,3234.6,3234.1,2.26226105]
[1763288506610,0.28910295,3234.5,3234.1,2.26226105]
[1763288506816,0.28910295,3234.4,3234.1,2.26226105]
[1763288507127,0.28910295,3234.3,3234.2,0.03091954]
[1763288507490,0.28910295,3234.3,3234.2,3.09195473]
[1763288510139,0.28910295,3234.3,3234.1,2.26226105]
[1763288510450,0.001,3234.5,3234.1,5.35430393]
[1763288510749,0.28934165,3234.4,3234.1,5.35430393]
[1763288510900,0.28934165,3234.3,3234.1,2.26226105]
[1763288511103,0.28934165,3234.2,3233.8,2.26226105]
[1763288511354,0.28942191,3234.1,3233.5,9.58125003]
[1763288511533,0.001,3234.5,3233.9,6.18448312]
[1763288511733,0.2894323,3234.4,3233.9,3.09224156]
[1763288511930,0.2894323,3234.3,3233.9,3.09224156]
[1763288512220,0.2894323,3234.2,3233.6,3.0924724]
[1763288512418,0.2894323,3234.1,3233.6,6.18500085]
[1763288512624,0.2894323,3234.0,3233.6,6.18500085]
[1763288512818,0.4627,3234.5,3233.6,6.18500085]
[1763288512819,0.001,3234.5,3233.6,6.18500085]
[1763288513141,0.28952853,3234.4,3233.8,2.26226105]
[1763288513313,0.28952853,3234.3,3233.8,2.26226105]
[1763288513514,0.28952853,3234.2,3233.8,2.26226105]
[1763288513737,0.28952853,3234.1,3233.9,3.09224156]
[1763288513937,0.28952853,3234.0,3233.9,3.09224156]
[1763288514728,0.28952853,3234.0,3233.7,2.26226105]
[1763288514906,3.09267851,3234.5,3233.7,2.26226105]
[1763288515239,0.28972587,3234.4,3233.7,2.26226105]
[1763288515433,0.28972587,3234.3,3233.7,2.26226105]
[1763288515636,0.28972587,3234.2,3233.5,3.09258743]
[1763288515836,0.28972587,3234.1,3233.5,6.18521152]
[1763288516042,0.28972587,3234.0,3233.5,6.18521152]
[1763288516217,0.28972587,3234.0,3233.4,3.39600185]
[1763288516218,0.28972587,3233.9,3233.3,4.02377937]
[1763288516535,0.28972587,3233.8,3233.4,2.26226105]
[1763288516703,0.28972587,3233.7,3233.4,2.26226105]
[1763288516904,0.31226611,3234.4,3233.4,2.26226105]
[1763288517241,0.2897713,3234.3,3233.4,2.26226105]
[1763288517423,0.2897713,3234.2,3233.4,2.26226105]
[1763288517624,0.4617,3234.3,3233.5,3.09262409]
[1763288517625,0.2897713,3234.1,3233.5,3.09262409]
[1763288517940,0.2897713,3234.0,3233.5,3.09262409]
[1763288518104,0.2897713,3233.9,3233.5,3.09262409]
[1763288518305,0.2897713,3233.8,3233.5,3.09262409]
[1763288518518,3.55357821,3234.3,3233.5,3.09262409]
[1763288518733,3.55357821,3234.3,3233.4,5.35496803]
[1763288518734,1.10682408,3234.2,3233.4,2.26226105]
[1763288518935,0.28976626,3234.1,3233.4,8.44767205]
[1763288519116,0.28976626,3234.0,3233.7,2.26226105]
[1763288519450,0.28976626,3233.9,3233.4,2.26226105]
[1763288519655,3.09188669,3234.3,3233.4,2.26226105]
[1763288519943,0.75146626,3234.2,3233.4,5.35496841]
[1763288520142,0.28976626,3234.1,3233.4,5.35496841]
[1763288520382,0.28976626,3234.0,3233.3,3.09277877]
[1763288520537,0.28976626,3233.9,3233.3,3.09277877]
[1763288520739,0.28976626,3233.8,3233.2,3.09287502]
[1763288520938,0.28976626,3233.7,3233.3,2.01719725]
[1763288521267,0.28972771,3233.6,3232.9,2.01719725]
[1763288521463,0.474,3233.3,3232.9,2.01719725]
[1763288521618,0.474,3233.3,3232.5,0.002]
[1763288521823,0.28976992,3233.2,3232.5,2.01919725]
[1763288522058,0.28976992,3233.1,3232.5,2.01919725]
[1763288522260,3.55425887,3233.6,3232.8,2.01719725]
[1763288522424,0.28960364,3233.5,3232.8,2.01719725]
[1763288522622,0.28960364,3233.4,3232.8,2.01719725]
[1763288522818,0.28960364,3233.3,3232.8,2.01719725]
[1763288523052,0.28960364,3233.2,3232.8,2.01719725]
[1763288523240,0.4617,3233.5,3232.8,2.01719725]
[1763288523442,0.28950165,3233.4,3232.8,2.01719725]
[1763288523764,0.28950165,3233.3,3232.8,2.01719725]
[1763288524061,0.1927,3234.9,3233.4,0.405504]
[1763288524062,0.001,3234.9,3233.4,0.405504]
[1763288524239,0.28938462,3234.8,3234.4,2.01719725]
[1763288525161,0.001,3234.9,3234.4,2.01719725]
[1763288525659,0.29038462,3234.9,3234.4,2.01719725]
[1763288525854,0.001,3234.9,3234.4,5.10896079]
[1763288528934,0.001,3234.9,3234.4,5.51446479]
[1763288529335,0.001,3234.9,3234.4,5.10896079]
[1763288530074,0.1834,3234.9,3234.1,5.10923329]
[1763288530234,0.1834,3234.9,3234.1,8.20128362]
[1763288530439,0.47248333,3234.9,3234.1,8.20128362]
[1763288531490,0.1834,3234.9,3234.1,8.20128362]
[1763288533144,0.001,3234.9,3234.1,8.20128362]
[1763288533351,0.001,3234.9,3234.4,2.01719725]
[1763288533839,0.68,3234.9,3234.4,5.10896079]
[1763288534056,0.68,3234.9,3234.4,3.09176354]
[1763288535359,0.1834,3234.9,3234.4,3.09176354]
[1763288536189,0.1834,3234.9,3234.2,5.10906928]
[1763288536190,0.001,3234.9,3234.3,3.09185913]
[1763288537966,0.001,3234.9,3234.4,1.57016243]
[1763288538165,0.001,3234.9,3234.4,4.63100834]
[1763288538367,0.001,3234.9,3234.4,4.22550434]
[1763288538590,0.6496,3234.9,3234.4,4.22550434]
[1763288538797,0.6496,3234.9,3234.4,3.09176354]
[1763288540497,0.001,3234.9,3234.4,3.09176354]
[1763288542896,0.1969,3234.9,3234.2,2.01719725]
[1763288543085,0.4959,3234.3,3234.0,1.1337408]
[1763288543293,0.4537,3234.5,3234.0,1.1337408]
[1763288543626,0.001,3234.5,3234.1,2.01719725]
[1763288544526,0.4527,3234.4,3234.1,2.01719725]
[1763288544710,0.001,3234.5,3234.0,1.1337408]
[1763288544901,0.001,3234.5,3234.3,2.01719725]
[1763288546824,0.9486,3234.4,3234.2,3.09186056]
[1763288546989,0.4959,3234.3,3234.2,3.09186056]
[1763288549200,0.4959,3234.3,3234.0,6.24300218]
[1763288549406,0.9486,3234.3,3234.0,9.33514812]
[1763288549620,0.4959,3234.1,3233.7,2.01719725]
[1763288549810,0.4959,3233.8,3233.7,3.15093805]
[1763288550005,0.4527,3234.4,3233.7,3.15093805]
[1763288550193,0.001,3234.5,3233.7,3.15093805]
[1763288550194,0.001,3234.5,3234.0,2.01719725]
[1763288550700,0.4537,3234.5,3234.0,2.01719725]
[1763288551226,0.4537,3234.5,3234.1,6.18410066]
[1763288551430,0.4537,3234.5,3234.3,2.01719725]
[1763288551633,0.4537,3234.5,3234.1,6.18410066]
[1763288551930,0.4537,3234.5,3234.1,3.09205033]
[1763288552635,0.4537,3234.5,3234.1,6.18410066]
[1763288553036,0.4537,3234.5,3234.3,1.72326773]
[1763288553334,0.28984206,3234.4,3234.3,1.72326773]
[1763288553496,0.78574206,3234.4,3234.3,1.72326773]
[1763288553701,1.23844206,3234.4,3234.3,1.72326773]
[1763288554740,1.23844206,3234.4,3233.6,3.0925203]
[1763288554741,4.3302056,3234.4,3233.6,3.0925203]
[1763288554908,1.20006262,3234.3,3233.8,1.72326773]
[1763288555113,0.28984206,3234.2,3233.8,1.72326773]
[1763288555430,0.4716,3233.9,3233.8,1.72326773]
[1763288555731,0.6611,3233.9,3233.8,1.72326773]
[1763288556098,0.6611,3233.9,3233.8,4.81560491]
[1763288556298,0.6611,3233.9,3233.8,1.72326773]
[1763288557026,0.6611,3233.9,3233.7,2.0167479]
[1763288557533,0.6611,3233.9,3233.8,3.09233718]
[1763288557735,0.6611,3233.9,3233.7,5.10914814]
[1763288558866,0.4716,3233.9,3233.7,5.10914814]
[1763288559079,0.4771,3234.2,3233.7,8.20158095]
[1763288559231,0.28950856,3234.1,3233.7,8.20158095]
[1763288559929,0.4771,3234.2,3233.7,8.20158095]
[1763288560566,0.4771,3234.2,3234.0,2.0167479]
[1763288560762,0.001,3234.5,3233.7,8.20158095]
[1763288560963,0.29042917,3234.5,3234.1,2.0167479]
[1763288561165,0.76752917,3234.5,3234.1,2.0167479]
[1763288561468,0.28942917,3234.4,3234.1,2.0167479]
[1763288561673,0.76652917,3234.4,3234.1,2.0167479]
[1763288561856,0.4771,3234.4,3234.1,5.10878377]
[1763288562569,0.001,3234.5,3234.1,5.10878377]
[1763288562932,0.76749411,3234.5,3234.1,5.10878377]
[1763288563267,0.28939411,3234.4,3234.1,5.10878377]
[1763288563648,0.001,3234.5,3234.1,8.2008341]
[1763288564055,0.001,3234.4,3234.1,8.2008341]
[1763288564575,0.001,3234.4,3234.2,0.03091954]
[1763288564772,0.001,3234.4,3234.2,1.1337408]
[1763288565766,0.001,3234.4,3234.3,3.09185913]
[1763288569907,0.001,3234.4,3234.3,3.49736313]
[1763288570078,0.001,3234.4,3234.3,5.13110393]
[1763288570278,0.001,3234.4,3234.3,4.63110393]
[1763288572709,0.001,3234.4,3234.3,5.13110393]
[1763288573932,0.001,3234.4,3234.3,5.16202252]
[1763288574823,0.001,3234.4,3234.3,5.13110393]
[1763288576937,0.001,3234.4,3234.3,8.57574023]
[1763288579641,0.001,3234.5,3234.4,2.0392448]
[1763288579814,0.001,3234.5,3234.4,2.970297]
[1763288580211,0.001,3234.8,3234.7,0.905504]
[1763288580455,0.001,3234.8,3234.7,5.4838811]
[1763288580653,0.001,3234.8,3234.7,8.07535789]
[1763288580855,0.4726,3234.8,3234.7,7.66985389]
[1763288581765,0.001,3234.8,3234.7,5.84007715]
[1763288584930,0.001,3234.8,3234.7,6.24558115]
[1763288585134,0.001,3234.8,3234.7,6.74558115]
[1763288585733,0.001,3234.8,3234.7,5.13072159]
[1763288585734,0.4715,3234.8,3234.7,5.13072159]
[1763288585939,0.4715,3234.8,3234.7,6.24558115]
[1763288589033,0.9578,3234.8,3234.7,6.24558115]
[1763288589436,0.4715,3234.8,3234.7,4.22521759]
[1763288589734,0.001,3234.8,3234.7,5.84007715]
[1763288589936,0.4715,3234.8,3234.7,5.84007715]
[1763288593637,0.9578,3234.8,3234.7,5.84007715]
[1763288595192,0.001,3234.8,3234.7,6.24558115]
[1763288595350,0.001,3234.8,3234.7,6.74558115]
[1763288596455,0.001,3234.8,3234.7,7.67663335]
[1763288608883,0.001,3234.8,3234.7,7.17663335]
[1763288610915,0.4771,3234.8,3234.7,7.17663335]
[1763288611218,0.9606,3234.8,3234.7,7.17663335]
[1763288611432,0.4771,3234.8,3234.7,7.17663335]
[1763288612826,0.9606,3234.8,3234.7,5.15626979]
[1763288612995,0.9606,3234.8,3234.7,0.9310522]
[1763288613478,0.9606,3234.8,3234.7,4.02252899]
[1763288613985,0.9606,3234.8,3234.7,3.09147679]
[1763288615122,0.9606,3234.8,3234.5,1.1357408]
[1763288615309,0.4575,3234.6,3234.5,2.75060036]
[1763288615484,0.001,3234.8,3234.6,0.405504]
[1763288615685,0.001,3234.8,3234.7,2.02036356]
[1763288617714,0.001,3234.8,3234.7,5.11184035]
[1763288621517,0.001,3234.8,3234.7,6.24558115]
[1763288622805,0.001,3234.8,3234.7,6.74558115]
[1763288625701,0.001,3234.8,3234.7,7.67663335]
[1763288627439,0.4585,3234.8,3234.7,7.17663335]
[1763288627643,0.9274,3234.8,3234.7,7.17663335]
[1763288628005,0.4585,3234.8,3234.7,7.17663335]
[1763288628498,0.4585,3234.8,3234.7,7.64553335]
[1763288628807,0.9274,3234.8,3234.7,7.64553335]
[1763288630227,0.9274,3234.8,3234.7,6.03067379]
[1763288631550,0.9274,3234.8,3234.7,5.09962159]
[1763288633154,0.4585,3234.8,3234.7,5.09962159]
[1763288633323,0.001,3234.8,3234.7,5.09962159]
[1763288633850,0.4585,3234.8,3234.7,5.09962159]
[1763288634827,0.9274,3234.8,3234.7,5.09962159]
[1763288637351,0.9274,3234.8,3234.7,6.03067379]
[1763288637567,0.9274,3234.8,3234.7,5.09962159]
[1763288638854,0.001,3234.8,3234.7,5.09962159]
[1763288640855,0.001,3234.8,3234.7,8.54435765]
[1763288644666,0.9921,3234.8,3234.7,6.82198962]
[1763288647641,0.001,3234.8,3234.7,9.04435765]
[1763288649370,0.001,3234.8,3234.7,9.97540985]
[1763288650133,0.001,3235.5,3235.0,3.0911901]